bitfinex/quotes_BTCUSD_20230109
["timestamp","ask_amount","ask_price","bid_price","bid_amount"]
[1673300599894,0.00257746,17196.0,17195.0,6.32887794]
[1673300601429,0.00257746,17196.0,17195.0,5.56468197]
[1673300601958,0.24025535,17196.0,17195.0,4.06468197]
[1673300602221,0.00257746,17196.0,17195.0,3.13993838]
[1673300603767,0.00257746,17196.0,17195.0,3.43993838]
[1673300605034,0.00257746,17196.0,17195.0,2.65710138]
[1673300605292,0.00257746,17196.0,17195.0,0.22633938]
[1673300605550,0.17047746,17196.0,17195.0,0.139]
[1673300607304,0.47047746,17196.0,17194.0,0.0029469]
[1673300607564,1.00880552,17196.0,17194.0,0.0029469]
[1673300608055,1.00880552,17196.0,17195.0,0.09]
[1673300608336,0.47047746,17196.0,17195.0,0.00929469]
[1673300608617,0.47147746,17196.0,17194.0,0.1439469]
[1673300608851,1.00975332,17196.0,17194.0,0.0029469]
[1673300609080,1.00975332,17196.0,17195.0,0.09]
[1673300609338,1.00975332,17196.0,17194.0,0.3029469]
[1673300609339,0.17047746,17196.0,17194.0,0.3029469]
[1673300609588,0.17147746,17196.0,17194.0,0.1439469]
[1673300609902,0.17147746,17196.0,17195.0,0.01439469]
[1673300610130,1.05401146,17196.0,17195.0,0.09]
[1673300610863,1.05301146,17196.0,17195.0,0.09]
[1673300611111,1.05301146,17196.0,17194.0,0.1439469]
[1673300611356,1.59133883,17196.0,17194.0,0.1439469]
[1673300611883,1.59033883,17196.0,17194.0,0.0029469]
[1673300612142,1.05301146,17196.0,17195.0,0.09]
[1673300612490,1.05401146,17196.0,17195.0,0.09]
[1673300613882,1.05201146,17196.0,17194.0,0.20251597]
[1673300614134,1.59023442,17196.0,17194.0,0.20251597]
[1673300614918,1.05201146,17196.0,17194.0,0.34351597]
[1673300615166,1.05301146,17196.0,17195.0,0.0343516]
[1673300616238,1.41506346,17196.0,17195.0,0.0343516]
[1673300616504,1.05201146,17196.0,17195.0,0.0343516]
[1673300616740,1.05301146,17196.0,17195.0,0.1243516]
[1673300617514,1.22221146,17196.0,17195.0,0.1243516]
[1673300617767,1.58426346,17196.0,17195.0,0.1243516]
[1673300619276,1.22221146,17196.0,17195.0,0.1243516]
[1673300619766,1.39593699,17196.0,17195.0,0.1243516]
[1673300620015,1.22221146,17196.0,17195.0,0.1243516]
[1673300621054,1.58426346,17196.0,17195.0,0.1243516]
[1673300621306,1.00272946,17196.0,17195.0,0.1243516]
[1673300623222,0.64067746,17196.0,17195.0,0.1243516]
[1673300623902,0.34067746,17196.0,17195.0,0.1243516]
[1673300625149,0.70272946,17196.0,17195.0,0.1243516]
[1673300625646,0.34067746,17196.0,17195.0,0.1243516]
[1673300626132,0.70272946,17196.0,17195.0,0.1243516]
[1673300626639,0.34067746,17196.0,17195.0,0.1243516]
[1673300627895,0.70272946,17196.0,17195.0,0.1243516]
[1673300628649,0.34067746,17196.0,17195.0,0.1243516]
[1673300629726,0.34067746,17196.0,17195.0,1.37234815]
[1673300629727,0.00357746,17196.0,17195.0,1.37234815]
[1673300629967,0.00351745,17196.0,17195.0,1.67234815]
[1673300630724,0.00351745,17196.0,17195.0,1.37234815]
[1673300631723,0.00351745,17196.0,17195.0,0.79078415]
[1673300631979,0.00351745,17196.0,17195.0,1.09078415]
[1673300632739,0.00351745,17196.0,17195.0,1.67234815]
[1673300633985,0.00351745,17196.0,17195.0,1.37234815]
[1673300635665,0.14296833,17197.0,17195.0,1.37234815]
[1673300635886,0.14296833,17197.0,17196.0,0.13723482]
[1673300637173,0.14296833,17197.0,17196.0,0.15623482]
[1673300638451,0.31669386,17197.0,17196.0,0.15623482]
[1673300641087,0.93916139,17197.0,17196.0,0.15623482]
[1673300642080,1.2861916,17197.0,17196.0,0.15623482]
[1673300642331,1.11246607,17197.0,17196.0,0.15623482]
[1673300646309,0.93961254,17197.0,17196.0,0.15623482]
[1673300646573,0.31714501,17197.0,17196.0,0.77246836]
[1673300647830,0.14296833,17197.0,17196.0,0.77246836]
[1673300648077,0.67919701,17197.0,17196.0,0.77246836]
[1673300648596,0.31714501,17197.0,17196.0,0.77246836]
[1673300648851,0.14296833,17197.0,17196.0,1.35399836]
[1673300649331,0.14296833,17197.0,17196.0,1.93552836]
[1673300649546,0.14296833,17197.0,17196.0,2.23552836]
[1673300649856,0.14296833,17197.0,17196.0,1.93552836]
[1673300650668,0.14296833,17197.0,17196.0,2.23552836]
[1673300650926,0.14296833,17197.0,17196.0,1.93552836]
[1673300651182,0.6057157,17198.0,17196.0,2.40950795]
[1673300651183,0.17112349,17198.0,17196.0,2.40950795]
[1673300651439,0.17112349,17198.0,17197.0,0.5409508]
[1673300651694,0.17112349,17198.0,17197.0,1.7039428]
[1673300653497,0.17112349,17198.0,17197.0,1.7939428]
[1673300655306,0.00282349,17198.0,17197.0,1.4939428]
[1673300655551,0.00282349,17198.0,17197.0,1.7953428]
[1673300655802,0.00282349,17198.0,17197.0,1.4953428]
[1673300656553,0.00282349,17198.0,17197.0,2.0953428]
[1673300657061,0.00282349,17198.0,17197.0,2.6768388]
[1673300658078,0.00282349,17198.0,17197.0,3.33692343]
[1673300661372,0.00271679,17198.0,17197.0,3.33692343]
[1673300663875,0.00271679,17198.0,17197.0,3.33685422]
[1673300664375,0.00271679,17198.0,17197.0,3.03685422]
[1673300665152,0.41172468,17198.0,17197.0,0.63228159]
[1673300665405,0.53894547,17198.0,17197.0,0.33228159]
[1673300665668,0.53894547,17198.0,17197.0,0.0914]
[1673300667264,0.83894547,17198.0,17197.0,0.0914]
[1673300668499,0.47689347,17198.0,17197.0,0.0914]
[1673300668751,0.83894547,17198.0,17197.0,0.0914]
[1673300668998,0.47689347,17198.0,17197.0,0.0914]
[1673300669246,0.47689347,17198.0,17197.0,0.17241498]
[1673300670256,0.83894547,17198.0,17197.0,0.17241498]
[1673300670999,0.47689347,17198.0,17197.0,0.17241498]
[1673300671260,0.83894547,17198.0,17197.0,0.17241498]
[1673300673939,0.00271679,17198.0,17197.0,0.17241498]
[1673300674935,0.00271679,17198.0,17197.0,0.75391098]
[1673300676053,0.00271679,17198.0,17197.0,1.33540698]
[1673300677388,0.00271679,17198.0,17197.0,0.75391098]
[1673300677927,0.00271679,17198.0,17197.0,1.05391098]
[1673300678185,0.00271679,17198.0,17197.0,0.75391098]
[1673300682292,0.00271679,17198.0,17197.0,0.75251098]
[1673300686906,0.00271679,17198.0,17197.0,0.74529688]
[1673300692540,0.17689347,17198.0,17197.0,0.16380088]
[1673300692790,0.53894547,17198.0,17197.0,0.16380088]
[1673300693083,0.17689347,17198.0,17197.0,0.16380088]
[1673300693876,0.17689347,17198.0,17197.0,0.74529688]
[1673300694664,0.00271679,17198.0,17197.0,1.32679288]
[1673300696538,0.00131679,17198.0,17197.0,1.32679288]
[1673300697038,0.00131679,17198.0,17197.0,1.62679288]
[1673300701135,0.17549347,17198.0,17197.0,1.32679288]
[1673300701398,0.53754547,17198.0,17197.0,1.32679288]
[1673300701653,0.53754547,17198.0,17197.0,1.32321088]
[1673300701966,0.17549347,17198.0,17197.0,0.74171488]
[1673300702910,0.435909,17198.0,17197.0,0.74171488]
[1673300703177,0.17549347,17198.0,17197.0,0.74171488]
[1673300704209,0.00131679,17198.0,17197.0,0.74171488]
[1673300704521,0.17549347,17198.0,17197.0,0.74171488]
[1673300704714,0.17549347,17198.0,17197.0,0.16021888]
[1673300704969,0.735909,17198.0,17197.0,0.16021888]
[1673300705958,1.097961,17198.0,17197.0,0.16021888]
[1673300707441,0.735909,17198.0,17197.0,0.16021888]
[1673300708195,1.097961,17198.0,17197.0,0.16021888]
[1673300711768,1.44499121,17198.0,17197.0,0.16021888]
[1673300712327,1.27081453,17198.0,17197.0,0.16021888]
[1673300713576,1.09771555,17198.0,17197.0,0.16021888]
[1673300716366,1.27081453,17198.0,17197.0,0.16021888]
[1673300716607,2.02562708,17198.0,17197.0,0.16021888]
[1673300718072,4.62693731,17198.0,17197.0,0.0792039]
[1673300718568,4.19317123,17198.0,17197.0,0.0792039]
[1673300719295,4.62773831,17198.0,17197.0,0.0792039]
[1673300719837,5.23120673,17198.0,17197.0,0.0792039]
[1673300721117,5.13433965,17198.0,17197.0,0.0792039]
[1673300721366,5.82342941,17198.0,17197.0,0.0792039]
[1673300721615,6.40282047,17198.0,17197.0,0.0792039]
[1673300721879,6.03702994,17198.0,17197.0,0.0792039]
[1673300722145,8.09953323,17198.0,17192.0,0.04352581]
[1673300722413,0.168,17193.0,17192.0,0.23764651]
[1673300722661,0.76772989,17193.0,17192.0,0.04352581]
[1673300722926,0.168,17193.0,17192.0,0.04352581]
[1673300723193,0.3,17194.0,17192.0,0.69228676]
[1673300723467,0.3,17194.0,17193.0,0.06922868]
[1673300725206,0.662052,17194.0,17193.0,0.06922868]
[1673300725722,0.667052,17194.0,17193.0,0.06922868]
[1673300725978,1.78014694,17194.0,17192.0,0.04337581]
[1673300726247,1.6099322,17194.0,17193.0,0.001]
[1673300726496,1.9719842,17194.0,17193.0,0.001]
[1673300727010,1.78014694,17194.0,17192.0,0.04337581]
[1673300727384,1.42309494,17194.0,17192.0,0.04337581]
[1673300727554,2.1735302,17194.0,17192.0,0.04337581]
[1673300727802,0.362052,17193.0,17192.0,0.04337581]
[1673300728048,2.23031294,17193.0,17192.0,0.04337581]
[1673300728548,2.4041502,17193.0,17192.0,0.04337581]
[1673300728803,3.46108126,17193.0,17192.0,0.04337581]
[1673300729068,3.63528126,17193.0,17192.0,0.09737581]
[1673300729312,3.1599822,17193.0,17192.0,0.09737581]
[1673300729594,3.76480587,17193.0,17192.0,0.04337581]
[1673300730087,3.76480587,17193.0,17192.0,0.09737581]
[1673300730088,3.42676861,17193.0,17192.0,0.09737581]
[1673300730583,3.43176861,17193.0,17192.0,0.15137581]
[1673300731339,3.42176861,17193.0,17192.0,0.04337581]
[1673300731594,3.50476861,17193.0,17192.0,0.05137581]
[1673300737540,3.9195492,17193.0,17192.0,0.05137581]
[1673300737794,4.69254234,17193.0,17192.0,0.05137581]
[1673300738032,4.86637959,17193.0,17192.0,0.05137581]
[1673300738852,5.04021685,17193.0,17192.0,0.05137581]
[1673300739132,4.8654181,17193.0,17192.0,0.05137581]
[1673300739912,5.71024259,17193.0,17192.0,0.05137581]
[1673300740213,5.40879149,17193.0,17192.0,0.05137581]
[1673300740467,5.07106808,17193.0,17192.0,0.05137581]
[1673300740719,4.76124441,17193.0,17192.0,0.00728045]
[1673300742004,0.3,17192.0,17191.0,0.00485648]
[1673300742272,4.74494883,17192.0,17191.0,0.00485648]
[1673300742521,4.39892797,17192.0,17191.0,0.00485648]
[1673300743287,4.74407733,17192.0,17191.0,0.00685648]
[1673300744315,5.00359297,17192.0,17191.0,0.00685648]
[1673300745071,5.47660118,17192.0,17191.0,0.00685648]
[1673300745315,4.83058032,17192.0,17191.0,0.00685648]
[1673300745540,5.00350122,17192.0,17191.0,0.00685648]
[1673300746080,5.17660118,17192.0,17191.0,0.00685648]
[1673300746336,4.89106176,17192.0,17191.0,0.00685648]
[1673300746591,6.54267637,17192.0,17191.0,0.00685648]
[1673300747351,6.97474763,17192.0,17191.0,0.00685648]
[1673300747606,6.95174763,17192.0,17191.0,0.00485648]
[1673300747867,6.95174415,17192.0,17191.0,0.00485648]
[1673300748130,6.95174384,17192.0,17191.0,0.00485648]
[1673300748387,6.51967637,17192.0,17191.0,0.00485648]
[1673300748615,6.63067637,17192.0,17191.0,0.01185648]
[1673300749135,7.06255791,17192.0,17191.0,0.01185648]
[1673300749393,7.737234,17192.0,17191.0,0.01185648]
[1673300749660,5.95280984,17192.0,17191.0,0.01185648]
[1673300750780,0.3,17191.0,17190.0,0.00422888]
[1673300751034,0.23796135,17190.0,17189.0,0.0157615]
[1673300751284,3.11382339,17190.0,17189.0,0.0157615]
[1673300751543,3.12232339,17190.0,17189.0,0.0157615]
[1673300751792,3.53710398,17190.0,17189.0,0.0157615]
[1673300752572,3.65410398,17190.0,17189.0,0.0217615]
[1673300752830,4.28241419,17190.0,17189.0,0.0217615]
[1673300753421,4.46541419,17190.0,17189.0,0.0157615]
[1673300753677,4.58241419,17190.0,17189.0,0.0217615]
[1673300755037,4.75517888,17190.0,17189.0,0.0217615]
[1673300757893,4.12686867,17190.0,17189.0,0.0217615]
[1673300758161,4.30954365,17190.0,17189.0,0.0217615]
[1673300758663,4.94502212,17190.0,17189.0,0.0217615]
[1673300758686,4.99075253,17190.0,17189.0,0.0217615]
[1673300758931,4.99991969,17190.0,17189.0,0.0217615]
[1673300759972,4.63543964,17190.0,17189.0,0.0217615]
[1673300760221,5.0339082,17190.0,17189.0,0.0217615]
[1673300760752,5.0339082,17190.0,17189.0,0.00133001]
[1673300761006,4.68817779,17190.0,17189.0,0.00133001]
[1673300761981,4.68817779,17190.0,17189.0,0.00012972]
[1673300762784,4.98817779,17190.0,17189.0,0.00012972]
[1673300763320,4.61935795,17190.0,17189.0,0.00012972]
[1673300764094,4.04840118,17190.0,17189.0,0.00012972]
[1673300765138,4.61912707,17190.0,17189.0,0.00012972]
[1673300766260,4.27316632,17190.0,17189.0,0.00012972]
[1673300767452,3.8411285,17190.0,17189.0,0.00012972]
[1673300767721,4.60115435,17190.0,17189.0,0.00012972]
[1673300767971,5.12266612,17190.0,17189.0,0.00012972]
[1673300768808,4.82266612,17190.0,17189.0,0.00012972]
[1673300770868,4.82266612,17190.0,17189.0,8.41e-06]
[1673300772933,5.12266612,17190.0,17189.0,8.41e-06]
[1673300773193,5.99277095,17190.0,17189.0,8.41e-06]
[1673300773448,6.03936274,17190.0,17189.0,8.41e-06]
[1673300774242,5.73936274,17190.0,17189.0,8.41e-06]
[1673300774733,6.03936274,17190.0,17189.0,8.41e-06]
[1673300775005,6.62582729,17190.0,17189.0,8.41e-06]
[1673300775258,6.03936274,17190.0,17189.0,8.41e-06]
[1673300775776,6.62582729,17190.0,17189.0,8.41e-06]
[1673300777540,6.32582729,17190.0,17189.0,8.41e-06]
[1673300777800,5.73936274,17190.0,17189.0,8.41e-06]
[1673300778048,6.32082729,17190.0,17189.0,8.41e-06]
[1673300778306,5.73436274,17190.0,17189.0,8.41e-06]
[1673300778818,5.15497168,17190.0,17189.0,8.41e-06]
[1673300779070,5.10760713,17190.0,17189.0,8.41e-06]
[1673300779334,5.1546721,17190.0,17189.0,8.41e-06]
[1673300782218,0.61386553,17189.0,17187.0,0.01610686]
[1673300782473,2.80569268,17188.0,17187.0,0.01610686]
[1673300782730,3.67606834,17188.0,17187.0,0.01610686]
[1673300783027,2.22389168,17188.0,17187.0,0.01621517]
[1673300783296,2.22389168,17188.0,17187.0,0.01610686]
[1673300784342,2.22389168,17188.0,17187.0,0.02210686]
[1673300784575,2.22389168,17188.0,17187.0,0.01610686]
[1673300784823,2.34589168,17188.0,17187.0,0.02210686]
[1673300785080,3.21633309,17188.0,17187.0,0.02210686]
[1673300785346,3.73756862,17188.0,17187.0,0.02210686]
[1673300785665,4.28900637,17188.0,17187.0,0.02210686]
[1673300786408,4.84996127,17188.0,17187.0,0.02210686]
[1673300786665,5.43176227,17188.0,17187.0,0.02210686]
[1673300786914,4.87080737,17188.0,17187.0,0.02210686]
[1673300787166,4.87086737,17188.0,17187.0,0.02210686]
[1673300792066,4.87086737,17188.0,17187.0,0.02221003]
[1673300792341,4.34963184,17188.0,17187.0,0.02210686]
[1673300792857,3.76783084,17188.0,17187.0,0.02210686]
[1673300793114,3.76777084,17188.0,17187.0,0.02210686]
[1673300794686,3.76777084,17188.0,17187.0,0.02221003]
[1673300794909,4.20261181,17188.0,17187.0,0.02210686]
[1673300795153,3.76777084,17188.0,17187.0,0.02210686]
[1673300799924,4.20274399,17188.0,17187.0,0.02221003]
[1673300800433,4.20274399,17188.0,17187.0,0.02210686]
[1673300800929,4.28900637,17188.0,17187.0,0.02210686]
[1673300801666,4.87080737,17188.0,17187.0,0.02210686]
[1673300803745,4.87080737,17188.0,17187.0,0.02200595]
[1673300809931,4.95874056,17188.0,17187.0,0.02200595]
[1673300811672,4.87080737,17188.0,17187.0,0.02200595]
[1673300813777,4.86580737,17188.0,17187.0,0.02200595]
[1673300818127,4.34457184,17188.0,17187.0,0.02200595]
[1673300818630,4.86580737,17188.0,17187.0,0.02200595]
[1673300821095,4.34457184,17188.0,17187.0,0.02200595]
[1673300821345,4.86580737,17188.0,17187.0,0.02200595]
[1673300821850,4.34457184,17188.0,17187.0,0.02200595]
[1673300823117,4.86580737,17188.0,17187.0,0.02200595]
[1673300823369,4.34457184,17188.0,17187.0,0.02200595]
[1673300823627,4.86580737,17188.0,17187.0,0.02200595]
[1673300824632,4.34457184,17188.0,17187.0,0.02200595]
[1673300826905,3.76277084,17188.0,17187.0,0.02200595]
[1673300828455,3.75777084,17188.0,17187.0,0.02200595]
[1673300829469,4.27900637,17188.0,17187.0,0.02200595]
[1673300829988,4.86080737,17188.0,17187.0,0.02200595]
[1673300831835,4.86080737,17188.0,17187.0,0.01200595]
[1673300832329,4.86080737,17188.0,17187.0,0.00141627]
[1673300832330,5.48343887,17188.0,17187.0,0.00141627]
[1673300832595,6.40620342,17188.0,17187.0,0.00141627]
[1673300834087,5.82681236,17188.0,17187.0,0.00141627]
[1673300844225,5.82681236,17188.0,17187.0,0.0034801]
[1673300844482,5.03006404,17188.0,17187.0,0.00141627]
[1673300845228,5.59540672,17188.0,17187.0,0.00141627]
[1673300845472,5.03002947,17188.0,17187.0,0.00141627]
[1673300846234,5.59435425,17188.0,17187.0,0.00141627]
[1673300846487,5.03002947,17188.0,17187.0,0.00141627]
[1673300846725,5.0873629,17188.0,17187.0,0.00141627]
[1673300846984,5.65166307,17188.0,17187.0,0.00141627]
[1673300848009,6.17352324,17188.0,17187.0,0.00141627]
[1673300848268,6.17347496,17188.0,17187.0,0.00141627]
[1673300848777,5.60917479,17188.0,17187.0,0.00141627]
[1673300849035,5.02978373,17188.0,17187.0,0.06039538]
[1673300849809,5.59295684,17188.0,17187.0,0.06039538]
[1673300850683,5.02978373,17188.0,17187.0,0.06039538]
[1673300851931,5.65735308,17188.0,17187.0,0.06039538]
[1673300852237,5.65735308,17188.0,17187.0,0.0048711]
[1673300852437,0.02891205,17185.0,17184.0,0.1688]
[1673300852708,1.41118627,17185.0,17184.0,0.1688]
[1673300852959,1.57174606,17185.0,17184.0,0.1688]
[1673300853215,1.87174606,17185.0,17184.0,0.1688]
[1673300853470,1.2996104,17185.0,17184.0,0.1688]
[1673300853728,0.9375584,17185.0,17184.0,0.1688]
[1673300853982,0.9375584,17185.0,17184.0,0.19132896]
[1673300853983,1.13446273,17185.0,17184.0,0.19132896]
[1673300854230,0.78666525,17185.0,17184.0,0.19132896]
[1673300854842,1.13446273,17185.0,17184.0,0.19132896]
[1673300855008,0.78666525,17185.0,17184.0,0.19132896]
[1673300856116,1.36856725,17185.0,17184.0,0.1728]
[1673300856337,1.36862725,17185.0,17184.0,0.1728]
[1673300856849,1.95052925,17185.0,17184.0,0.1728]
[1673300857630,1.95052925,17185.0,17184.0,0.004]
[1673300857881,2.29832673,17185.0,17184.0,0.004]
[1673300858471,2.1244224,17185.0,17184.0,0.004]
[1673300859442,2.29832633,17185.0,17184.0,0.00420588]
[1673300860444,2.29832633,17185.0,17184.0,0.004]
[1673300860699,2.03747746,17185.0,17184.0,0.004]
[1673300861477,2.03741746,17185.0,17184.0,0.004]
[1673300861741,2.29826633,17185.0,17184.0,0.004]
[1673300862528,2.25312533,17185.0,17184.0,0.004]
[1673300862993,1.67122333,17185.0,17184.0,0.00420588]
[1673300863555,0.52847246,17185.0,17184.0,0.17340588]
[1673300863815,0.52847246,17185.0,17184.0,0.35002883]
[1673300864334,0.35456853,17185.0,17184.0,0.35002883]
[1673300867442,0.35456853,17185.0,17184.0,0.55147083]
[1673300867702,0.35456853,17185.0,17184.0,0.35002883]
[1673300867981,0.35456853,17185.0,17184.0,0.54414953]
[1673300868233,0.35456853,17185.0,17184.0,3.54192975]
[1673300868490,0.35456853,17185.0,17184.0,4.12386575]
[1673300871110,0.35456853,17185.0,17184.0,3.06774428]
[1673300871392,0.35456853,17185.0,17184.0,2.76774428]
[1673300872664,0.35456853,17185.0,17184.0,3.64968028]
[1673300874484,0.00677105,17185.0,17184.0,3.64968028]
[1673300874739,0.00677105,17185.0,17184.0,3.64988616]
[1673300878796,0.15677105,17185.0,17184.0,3.64988616]
[1673300887231,0.15677105,17185.0,17184.0,3.06795016]
[1673300887499,0.15677105,17185.0,17184.0,2.89854428]
[1673300891010,0.15677105,17185.0,17184.0,2.89875016]
[1673300891272,0.15677105,17185.0,17184.0,3.48068616]
[1673300892008,0.15677105,17185.0,17184.0,3.27924416]
[1673300894301,0.15677105,17185.0,17184.0,2.69730816]
[1673300895394,0.15677105,17185.0,17184.0,3.27924416]
[1673300898137,0.15677105,17185.0,17184.0,2.69730816]
[1673300900880,0.15677105,17185.0,17184.0,2.87128775]
[1673300902142,0.15677105,17185.0,17184.0,3.07272975]
[1673300902387,0.15677105,17185.0,17184.0,2.87128775]
[1673300902632,0.15677105,17185.0,17184.0,2.53288775]
[1673300902880,0.15677105,17185.0,17184.0,2.79385263]
[1673300903663,0.15677105,17185.0,17184.0,3.24090958]
[1673300903905,0.15677105,17185.0,17184.0,3.44235158]
[1673300904659,0.15677105,17185.0,17184.0,5.02428758]
[1673300904926,0.15677105,17185.0,17184.0,5.53665924]
[1673300905168,0.15677105,17185.0,17184.0,5.71063342]
[1673300905920,0.15677105,17185.0,17184.0,5.53748126]
[1673300906919,0.15677105,17185.0,17184.0,5.71063342]
[1673300908897,0.15677105,17185.0,17184.0,5.97240347]
[1673300909153,0.15677105,17185.0,17184.0,5.53746441]
[1673300911148,0.15677105,17185.0,17184.0,5.97240347]
[1673300911408,0.15677105,17185.0,17184.0,5.53746441]
[1673300913210,0.15,17185.0,17184.0,5.53346441]
[1673300913436,0.157,17185.0,17184.0,5.76963342]
[1673300914463,0.157,17185.0,17184.0,6.03135006]
[1673300914981,0.157,17185.0,17184.0,4.596411]
[1673300915499,0.157,17185.0,17184.0,4.42293862]
[1673300916058,0.157,17185.0,17184.0,4.42233462]
[1673300916290,0.39467789,17185.0,17184.0,0.99603782]
[1673300916535,0.157,17185.0,17184.0,0.23962295]
[1673300917542,0.33090393,17185.0,17184.0,0.063]
[1673300919054,0.5917528,17185.0,17184.0,0.063]
[1673300919312,0.9538048,17185.0,17184.0,0.063]
[1673300919656,1.1736548,17185.0,17184.0,0.063]
[1673300920330,0.5917528,17185.0,17184.0,0.063]
[1673300920575,0.33090393,17185.0,17184.0,0.063]
[1673300920817,0.33090393,17185.0,17184.0,0.10094896]
[1673300921068,0.33090393,17185.0,17184.0,0.063]
[1673300924120,0.157,17185.0,17184.0,0.063]
[1673300929065,0.157,17185.0,17184.0,0.11514827]
[1673300934318,0.157,17185.0,17184.0,0.69708427]
[1673300936351,0.157,17185.0,17184.0,0.11514827]
[1673300936859,0.157,17185.0,17184.0,0.2963079]
[1673300943187,0.33090393,17185.0,17184.0,0.2963079]
[1673300943445,1.74167588,17185.0,17184.0,0.11514827]
[1673300943710,1.74167588,17185.0,17184.0,0.11508029]
[1673300943711,4.19235155,17185.0,17184.0,0.11508029]
[1673300944519,4.19209229,17185.0,17184.0,0.11508029]
[1673300945326,3.84459906,17185.0,17184.0,0.11508029]
[1673300945853,4.19208393,17185.0,17184.0,0.11508029]
[1673300946112,3.84459906,17185.0,17184.0,0.11508029]
[1673300946364,4.19198364,17185.0,17184.0,0.11508029]
[1673300946642,4.14943798,17185.0,17184.0,0.12823728]
[1673300946924,4.73133998,17185.0,17184.0,0.12823728]
[1673300947188,4.3839554,17185.0,17184.0,0.12823728]
[1673300947440,4.73136016,17185.0,17184.0,0.12823728]
[1673300947703,4.3839554,17185.0,17184.0,0.12823728]
[1673300948043,4.73136291,17185.0,17184.0,0.12823728]
[1673300949559,4.3839554,17185.0,17184.0,0.12823728]
[1673300950063,4.73131903,17185.0,17184.0,0.12823728]
[1673300951267,4.73131903,17185.0,17184.0,0.11508029]
[1673300951779,4.3839554,17185.0,17184.0,0.11508029]
[1673300952265,4.73124847,17185.0,17184.0,0.11508029]
[1673300952761,4.3839554,17185.0,17184.0,0.11508029]
[1673300954511,5.2543752,17185.0,17184.0,0.11508029]
[1673300954727,4.81962835,17185.0,17184.0,0.11508029]
[1673300955457,4.81962835,17185.0,17184.0,0.12823728]
[1673300955702,5.25383312,17185.0,17184.0,0.12823728]
[1673300955946,4.81962835,17185.0,17184.0,0.12823728]
[1673300956189,5.25377538,17185.0,17184.0,0.11508029]
[1673300956453,4.81962835,17185.0,17184.0,0.11508029]
[1673300959705,4.81962835,17185.0,17184.0,0.01110476]
[1673300961007,5.67752457,17185.0,17184.0,0.01110476]
[1673300962318,5.15582835,17185.0,17184.0,0.01110476]
[1673300962539,5.73521941,17185.0,17184.0,0.01110476]
[1673300962793,5.73671941,17185.0,17184.0,0.01110476]
[1673300963051,6.33066708,17185.0,17184.0,0.01110476]
[1673300963599,6.76666708,17185.0,17184.0,0.01110476]
[1673300965113,6.14542973,17185.0,17184.0,0.01110476]
[1673300965922,7.15912973,17185.0,17184.0,0.01110476]
[1673300966442,7.86326688,17185.0,17183.0,0.01648962]
[1673300966695,5.06381387,17184.0,17183.0,0.01648962]
[1673300966953,6.80942187,17184.0,17183.0,0.01648962]
[1673300967228,6.80942187,17184.0,17183.0,0.00141207]
[1673300967229,7.8311723,17184.0,17183.0,0.00141207]
[1673300969537,7.9671723,17184.0,17183.0,0.00141207]
[1673300971428,7.9672323,17184.0,17183.0,9.711e-05]
[1673300972942,6.9530323,17184.0,17183.0,9.711e-05]
[1673300976006,7.4217873,17184.0,17183.0,9.711e-05]
[1673300976279,6.91366669,17184.0,17183.0,9.711e-05]
[1673300976531,6.91360669,17184.0,17183.0,9.711e-05]
[1673300976774,7.48477977,17184.0,17183.0,9.711e-05]
[1673300977297,7.48477977,17184.0,17183.0,8.75e-06]
[1673300977596,6.90541055,17184.0,17183.0,8.75e-06]
[1673300978591,7.23060819,17184.0,17183.0,8.75e-06]
[1673300978882,6.93962819,17184.0,17183.0,8.75e-06]
[1673300979593,0.84640591,17183.0,17180.0,0.00549459]
[1673300979868,0.77462385,17181.0,17180.0,0.00549459]
[1673300980121,3.71099319,17181.0,17180.0,0.00549459]
[1673300980619,3.71949319,17181.0,17180.0,0.00549459]
[1673300981141,3.85449319,17181.0,17180.0,0.00549459]
[1673300981389,4.38166315,17181.0,17180.0,0.00549459]
[1673300981643,4.38172315,17181.0,17180.0,0.00549459]
[1673300981868,4.8150259,17181.0,17180.0,0.00549459]
[1673300982150,4.93960869,17181.0,17180.0,0.00549459]
[1673300982666,4.55504425,17181.0,17180.0,0.00549459]
[1673300983179,4.93956061,17181.0,17180.0,0.00549459]
[1673300983686,4.55504425,17181.0,17180.0,0.00549459]
[1673300983940,4.38180579,17181.0,17180.0,0.00549459]
[1673300986310,3.85360245,17181.0,17180.0,0.00549459]
[1673300986561,4.55477879,17181.0,17180.0,0.00549459]
[1673300986806,4.81491326,17181.0,17180.0,0.00549459]
[1673300987315,4.8149121,17181.0,17180.0,0.00549459]
[1673300987581,4.38160935,17181.0,17180.0,0.00549459]
[1673300988089,4.37310935,17181.0,17180.0,0.00549459]
[1673300988352,5.48783386,17181.0,17180.0,0.00549459]
[1673300988651,5.14119166,17181.0,17180.0,0.00549459]
[1673300988914,4.58457405,17181.0,17180.0,0.00549459]
[1673300989436,4.00253605,17181.0,17180.0,0.00549459]
[1673300989929,3.5692333,17181.0,17180.0,0.00549459]
[1673300990691,4.43955948,17181.0,17180.0,0.00549459]
[1673300990946,4.00294741,17181.0,17180.0,0.00549459]
[1673300992009,4.53036488,17181.0,17180.0,0.00549459]
[1673300992257,5.11240288,17181.0,17180.0,0.00549459]
[1673300992548,4.67868877,17181.0,17180.0,0.00549459]
[1673300993336,5.54923196,17181.0,17180.0,0.00549459]
[1673300993581,6.23839526,17181.0,17180.0,0.00549459]
[1673300993834,6.24689526,17181.0,17180.0,0.00549459]
[1673300994099,6.50800155,17181.0,17180.0,0.00059296]
[1673300994410,7.22607893,17181.0,17180.0,0.00059296]
[1673300994637,7.68717838,17181.0,17180.0,0.00059296]
[1673300999733,7.68717838,17181.0,17178.0,0.00295085]
[1673300999734,0.3,17180.0,17178.0,0.00295085]
[1673300999986,5.20496056,17179.0,17178.0,0.00295085]
[1673301000241,6.42152358,17179.0,17178.0,0.00295085]
[1673301000489,6.38035595,17179.0,17178.0,8.5e-07]
[1673301000754,6.79734014,17179.0,17178.0,8.5e-07]
[1673301000999,6.04315595,17179.0,17178.0,8.5e-07]
[1673301001256,6.62254701,17179.0,17178.0,8.5e-07]
[1673301001512,6.04315595,17179.0,17178.0,8.5e-07]
[1673301001765,6.62565914,17179.0,17178.0,8.5e-07]
[1673301002023,7.32316265,17179.0,17178.0,8.5e-07]
[1673301002275,7.62316265,17179.0,17178.0,8.5e-07]
[1673301002537,8.20255371,17179.0,17178.0,8.5e-07]
[1673301002781,7.78566952,17179.0,17178.0,8.5e-07]
[1673301003046,7.61646952,17179.0,17178.0,8.5e-07]
[1673301004079,0.70980566,17178.0,17177.0,0.00212771]
[1673301004335,4.47594761,17178.0,17177.0,0.00212771]
[1673301004584,6.40625651,17178.0,17177.0,0.00212771]
[1673301004833,6.95439598,17178.0,17177.0,0.00212771]
[1673301005080,6.95438645,17178.0,17177.0,0.00212771]
[1673301005357,7.09038645,17178.0,17177.0,0.00212771]
[1673301005613,6.56956547,17178.0,17177.0,0.00212771]
[1673301005867,6.54225772,17178.0,17177.0,0.00212771]
[1673301006128,6.33002851,17178.0,17177.0,0.00212771]
[1673301009896,6.33008851,17178.0,17177.0,0.00212771]